bitfinex-derivatives/quotes_ETHF0:USTF0_20250102
["timestamp","ask_amount","ask_price","bid_price","bid_amount"]
[1735833126728,3.38882436,3466.7,3466.6,0.28877]
[1735833127136,3.2078,3466.8,3466.1,3.17148691]
[1735833127334,3.2078,3466.8,3466.7,0.28876]
[1735833127533,0.28876,3466.7,3466.6,0.28876]
[1735833127835,3.49655,3466.8,3466.7,0.28876]
[1735833128032,3.2078,3466.8,3466.4,0.4925]
[1735833128331,0.28877,3466.5,3466.4,0.4925]
[1735833128531,0.28878,3466.4,3466.3,0.4511]
[1735833129434,0.28881,3466.2,3466.1,0.2888]
[1735833130033,3.2078,3466.8,3465.8,0.4925]
[1735833130339,3.2078,3466.8,3466.0,3.2078]
[1735833130839,0.28874,3467.0,3466.9,0.28873]
[1735833131031,0.28874,3467.0,3466.8,0.28874]
[1735833131338,0.9269,3467.1,3466.2,0.722]
[1735833131534,0.28874,3466.9,3466.7,0.28875]
[1735833131738,0.9269,3467.1,3466.2,0.722]
[1735833131926,0.28875,3466.8,3466.6,0.28876]
[1735833132237,0.28875,3466.8,3466.4,3.2078]
[1735833132431,1.21563,3467.1,3466.9,0.28874]
[1735833132631,1.21563,3467.1,3466.5,1.4185]
[1735833132831,1.21563,3467.1,3466.9,0.28874]
[1735833133033,0.9269,3467.1,3466.5,1.4185]
[1735833133630,0.4487,3467.1,3466.5,1.4185]
[1735833133838,0.4487,3467.1,3467.0,0.28873]
[1735833134138,0.73742,3467.1,3466.9,0.28874]
[1735833134434,0.4487,3467.1,3466.5,1.4185]
[1735833134731,0.28874,3466.9,3466.7,0.28875]
[1735833134927,0.28874,3466.9,3466.5,0.9431]
[1735833134928,0.4487,3467.1,3467.0,0.28873]
[1735833135130,3.38882436,3468.1,3467.0,3.2078]
[1735833135335,3.67746436,3468.1,3467.9,0.28866]
[1735833135537,3.67747436,3468.1,3467.8,0.28866]
[1735833135739,0.28865,3468.0,3467.8,0.28866]
[1735833136035,0.28865,3468.0,3467.7,0.9408]
[1735833136241,3.38882436,3468.1,3467.7,0.9408]
[1735833136242,3.38882436,3468.1,3468.0,0.28865]
[1735833136531,3.2078,3468.5,3467.7,0.9408]
[1735833136932,0.28864,3468.1,3467.8,0.28867]
[1735833137133,0.28866,3467.9,3467.7,0.9408]
[1735833137337,0.72155,3468.4,3467.6,3.2078]
[1735833137537,3.2078,3468.4,3467.6,3.2078]
[1735833137734,0.28867,3467.7,3467.6,3.2078]
[1735833138038,3.17100691,3468.5,3467.3,4.51901589]
[1735833138039,0.28869,3467.6,3467.3,4.51901589]
[1735833138228,3.2078,3468.0,3467.3,4.51901589]
[1735833138229,0.28868,3467.7,3467.3,4.51901589]
[1735833138429,0.2887,3467.4,3467.3,4.51901589]
[1735833138827,0.28869,3467.6,3467.3,4.51901589]
[1735833139033,1.4396,3467.9,3467.3,4.51901589]
[1735833139034,0.28867,3467.8,3467.4,0.28869]
[1735833139342,1.4396,3467.9,3467.2,0.4761]
[1735833139640,1.27356,3467.9,3467.5,0.28869]
[1735833139840,0.9849,3467.9,3467.3,0.4628]
[1735833140333,0.28867,3467.8,3467.4,0.28869]
[1735833140536,0.28867,3467.8,3467.3,0.4628]
[1735833140537,0.9849,3467.9,3467.3,0.4628]
[1735833140733,0.9849,3467.9,3467.7,0.28867]
[1735833140927,0.9849,3467.9,3467.5,3.2078]
[1735833141236,0.4931,3467.9,3467.5,3.2078]
[1735833141538,3.7009,3467.9,3467.3,0.4628]
[1735833141738,0.28871,3467.4,3467.2,0.4761]
[1735833142126,0.78176,3467.9,3467.6,0.28868]
[1735833142331,0.4931,3467.9,3467.2,0.4761]
[1735833142541,0.28869,3467.5,3467.2,0.4761]
[1735833142735,0.28869,3467.5,3467.3,0.28871]
[1735833143038,3.7009,3467.9,3467.3,0.28871]
[1735833143240,0.2887,3467.4,3467.2,0.76481]
[1735833143542,3.7009,3467.9,3467.1,3.2078]
[1735833143739,0.28872,3467.2,3467.1,3.2078]
[1735833145140,0.2887,3467.4,3467.0,0.28873]
[1735833145341,3.2078,3467.5,3466.9,0.4628]
[1735833145535,0.28873,3467.1,3467.0,0.28873]
[1735833145937,0.28872,3467.2,3467.0,0.28873]
[1735833146434,0.28872,3467.1,3467.0,0.28873]
[1735833147335,3.2078,3467.5,3466.9,0.4628]
[1735833147542,3.2078,3467.5,3466.8,0.4826]
[1735833147936,3.6598,3467.5,3466.8,0.4826]
[1735833148135,0.28872,3467.2,3467.1,0.28872]
[1735833148342,3.6598,3467.5,3466.8,0.4826]
[1735833148554,0.2887,3467.4,3467.0,0.28873]
[1735833148842,3.6598,3467.5,3466.8,0.4826]
[1735833149038,0.28872,3467.2,3467.1,0.28872]
[1735833149238,3.6598,3467.5,3466.8,0.4826]
[1735833149640,0.28872,3467.1,3467.0,0.28873]
[1735833149851,0.28871,3467.3,3466.9,0.28874]
[1735833150146,3.2078,3467.5,3466.9,0.28874]
[1735833150147,0.28874,3467.0,3466.9,0.28874]
[1735833150445,0.28875,3466.8,3466.7,5.01641589]
[1735833150640,0.28875,3466.8,3466.7,4.51901589]
[1735833151444,0.28877,3466.5,3466.4,4.51901589]
[1735833151649,5.94603691,3466.5,3466.4,2.80301589]
[1735833151952,0.28879,3466.3,3466.2,6.71784941]
[1735833152250,0.28879,3466.3,3466.2,6.11084941]
[1735833152552,0.28879,3466.3,3466.2,5.36974941]
[1735833153142,5.28879,3466.3,3466.2,5.36974941]
[1735833153345,0.72202,3466.2,3465.0,0.4695]
[1735833153551,0.28888,3465.2,3465.0,0.4695]
[1735833153849,3.2078,3465.7,3465.0,0.75839]
[1735833154050,3.2078,3465.7,3465.0,0.4695]
[1735833154253,0.28888,3465.2,3465.0,0.7584]
[1735833154442,0.28888,3465.2,3464.7,8.9445026]
[1735833154642,3.2078,3465.3,3464.7,8.9445026]
[1735833154844,3.2078,3465.3,3464.8,0.4536]
[1735833154845,0.28891,3464.9,3464.8,0.4536]
[1735833155446,0.2889,3465.0,3464.8,0.4536]
[1735833155643,0.2889,3465.0,3464.8,0.74251]
[1735833155840,0.2889,3465.0,3464.8,0.4536]
[1735833156045,0.2889,3465.0,3464.8,0.74251]
[1735833156244,3.2078,3465.3,3464.8,0.4536]
[1735833156445,0.28889,3465.1,3464.9,0.28891]
[1735833157451,3.2078,3465.3,3464.8,0.4536]
[1735833158053,0.28888,3465.2,3464.9,0.2889]
[1735833158255,0.28889,3465.1,3464.9,0.2889]
[1735833158454,0.28889,3465.1,3464.8,0.74251]
[1735833158652,0.28889,3465.1,3464.9,0.2889]
[1735833159249,0.2889,3465.0,3464.8,0.74251]
[1735833159460,0.28891,3464.9,3464.8,0.4536]
[1735833159657,3.2078,3465.3,3464.8,0.4536]
[1735833160155,0.2889,3465.1,3464.9,0.2889]
[1735833160350,0.2889,3465.0,3464.8,0.74251]
[1735833160554,3.2078,3465.3,3464.8,0.4536]
[1735833160755,0.28891,3464.9,3464.8,0.4536]
[1735833161955,0.28888,3465.2,3464.8,0.4536]
[1735833162147,3.2078,3465.3,3464.9,0.2889]
[1735833162353,3.2078,3465.3,3464.8,0.4536]
[1735833162660,0.2889,3465.0,3464.9,0.28891]
[1735833163059,3.2078,3465.3,3464.8,0.4536]
[1735833163250,0.28891,3464.9,3464.8,0.4536]
[1735833163451,0.2889,3465.0,3464.8,0.4536]
[1735833163751,0.2889,3465.0,3464.9,2.0495822]
[1735833164351,0.28891,3464.9,3464.8,0.4536]
[1735833168858,3.49671,3464.9,3464.8,0.4536]
[1735833169359,3.2078,3464.9,3464.3,0.4913]
[1735833169561,3.2078,3464.9,3464.3,0.9903]
[1735833169562,0.28895,3464.4,3464.3,0.9903]
[1735833172766,0.28895,3464.4,3464.3,0.499]
[1735833173070,2.0495822,3464.4,3463.3,4.49914]
[1735833173260,0.28902,3463.6,3463.5,0.4582]
[1735833174458,0.28902,3463.6,3462.9,3.49687]
[1735833174459,0.28906,3463.2,3463.0,0.75886]
[1735833174965,0.28906,3463.1,3463.0,0.4698]
[1735833175467,3.2078,3463.5,3463.0,0.4698]
[1735833175669,0.28905,3463.2,3463.0,0.75886]
[1735833176265,0.28905,3463.3,3463.0,0.75886]
[1735833176476,0.28906,3463.1,3463.0,0.4698]
[1735833177173,0.28906,3463.2,3463.0,0.4698]
[1735833177370,0.72252,3463.7,3463.0,0.4698]
[1735833177666,5.27389,3463.9,3463.2,0.28904]
[1735833177869,4.5268,3463.9,3463.0,0.4698]
[1735833178169,0.28902,3463.6,3463.4,0.28903]
[1735833178369,0.28901,3463.7,3463.5,0.28902]
[1735833178563,0.28901,3463.7,3463.3,3.2078]
[1735833178871,0.28901,3463.7,3463.6,0.28902]
[1735833179073,0.289,3463.8,3463.4,0.4668]
[1735833179269,0.289,3463.8,3463.6,0.28901]
[1735833179474,4.5268,3463.9,3463.7,0.7738]
[1735833179475,3.2078,3463.9,3463.7,0.7738]
[1735833180169,0.289,3463.8,3463.7,0.7738]
[1735833180473,3.2078,3463.9,3463.7,0.4848]
[1735833180671,0.289,3463.8,3463.7,0.4848]
[1735833180970,0.28907,3463.0,3462.9,3.2078]
[1735833181175,0.28907,3463.0,3462.9,3.6746]
[1735833183662,6.5763822,3463.5,3462.9,3.6746]
[1735833183873,3.49683,3463.5,3463.3,0.28904]
[1735833184076,3.2078,3463.5,3463.0,0.4962]
[1735833184269,0.28904,3463.4,3463.2,0.28904]
[1735833184579,0.28904,3463.4,3463.0,0.4962]
[1735833184580,3.2078,3463.5,3463.0,0.4962]
[1735833184766,3.2078,3463.5,3463.1,0.28905]
[1735833184767,0.28905,3463.3,3463.1,0.28905]
[1735833185163,3.2078,3464.0,3463.0,2.5457822]
[1735833185367,3.2078,3464.2,3463.4,2.0495822]
[1735833185668,0.28905,3463.2,3463.0,0.78526]
[1735833186168,3.93032,3463.7,3463.0,0.4962]
[1735833186372,0.28905,3463.2,3463.1,0.28906]
[1735833186567,3.93032,3463.7,3463.0,0.78526]
[1735833186568,1.01157,3463.6,3463.0,0.78526]
[1735833186763,3.2078,3463.7,3463.0,0.4962]
[1735833187075,0.28904,3463.3,3463.2,0.28904]
[1735833187775,0.28904,3463.4,3463.1,2.0495822]
[1735833188177,0.7225,3463.9,3463.1,2.0495822]
[1735833188472,0.28903,3463.5,3463.4,0.28903]
[1735833189279,3.2078,3463.7,3463.1,2.0495822]
[1735833189470,0.28904,3463.4,3463.3,0.28904]
[1735833189779,0.72248,3464.0,3463.2,3.2078]
[1735833189970,3.2078,3464.2,3463.2,3.2078]
[1735833190170,0.28903,3463.5,3463.4,0.28903]
[1735833190472,0.28904,3463.4,3463.3,0.28904]
[1735833191072,0.28903,3463.5,3463.4,0.28903]
[1735833191472,0.28903,3463.4,3463.3,0.28903]
[1735833191968,0.28903,3463.4,3463.1,2.0495822]
[1735833191969,0.28905,3463.2,3463.1,2.3386322]
[1735833192278,0.28904,3463.4,3463.3,0.28903]
[1735833193073,0.28901,3463.7,3463.1,2.0495822]
[1735833193273,0.28905,3463.3,3463.2,0.28904]
[1735833194481,0.28901,3463.7,3463.0,0.4962]
[1735833194672,0.28905,3463.3,3463.2,0.28904]
[1735833195369,3.2078,3463.8,3463.0,0.4962]
[1735833195581,0.28906,3463.2,3463.1,0.28905]
[1735833195779,0.28906,3463.2,3463.0,0.4962]
[1735833195780,0.28906,3463.1,3463.0,0.78526]
[1735833196380,0.72252,3463.7,3463.0,0.4962]
[1735833196683,0.28904,3463.4,3463.3,0.28903]
[1735833198178,0.72256,3463.6,3463.0,0.4962]
[1735833198377,0.28906,3463.1,3463.0,0.78526]
[1735833199784,0.72256,3463.6,3463.0,0.4962]
[1735833199997,0.28905,3463.3,3463.2,0.28904]
[1735833200290,0.28906,3463.1,3463.0,0.78526]
[1735833200483,0.28906,3463.1,3463.0,0.4962]
[1735833200883,0.28915,3462.0,3461.9,3.72973432]
[1735833201083,0.28915,3462.0,3461.9,0.73398432]
[1735833201584,0.28915,3462.0,3461.9,0.5012]
[1735833201788,0.28915,3462.0,3461.9,0.79036]
[1735833201980,3.2078,3462.2,3462.1,0.28914]
[1735833202186,0.28915,3462.0,3461.9,0.79035]
[1735833202388,0.28915,3462.0,3461.9,0.5012]
[1735833203583,0.72291,3461.9,3460.8,3.2078]
[1735833203781,0.28923,3461.0,3460.9,0.4716]
[1735833203983,0.28923,3461.1,3460.9,0.4716]
[1735833204189,0.28923,3461.0,3460.9,0.4716]
[1735833205085,0.28922,3461.2,3460.9,0.76084]
[1735833205787,5.2573822,3461.3,3460.9,0.4716]
[1735833205990,0.28923,3461.0,3460.9,0.4716]
[1735833206488,2.3388122,3461.0,3460.9,0.4716]
[1735833206693,3.3675822,3461.0,3459.7,3.2078]
[1735833206896,0.2893,3460.2,3459.9,0.28932]
[1735833207188,3.2078,3460.1,3459.7,0.4639]
[1735833207586,0.28932,3460.0,3459.7,0.4639]
[1735833207786,0.28933,3459.9,3459.7,0.4639]
[1735833208091,3.2078,3460.1,3459.7,0.4639]
[1735833208795,0.28933,3459.8,3459.7,0.4639]
[1735833208983,0.28932,3460.0,3459.7,0.4639]
[1735833209187,3.2078,3460.1,3459.7,0.4639]
[1735833209387,0.28933,3459.8,3459.7,0.4639]
[1735833210098,0.28933,3459.8,3458.6,0.72358]
[1735833210099,0.2894,3459.1,3458.6,0.28942]
[1735833210300,3.2078,3459.0,3458.9,0.506]
[1735833210595,3.4972,3459.0,3458.9,0.506]
[1735833210990,3.2078,3459.0,3458.5,0.4907]
[1735833211196,3.2078,3458.6,3458.5,0.4907]
[1735833211388,3.2078,3458.6,3458.5,0.78014]
[1735833212194,3.2078,3458.6,3458.2,0.5022]
[1735833212195,3.2078,3458.6,3458.3,0.28945]
[1735833212401,3.2078,3458.6,3458.4,0.28944]
[1735833212895,3.4972,3459.0,3458.6,0.28943]
[1735833213197,3.2078,3459.5,3459.2,0.28938]
[1735833213400,3.2078,3459.5,3458.8,0.9472]
[1735833213890,0.28937,3459.4,3458.8,0.9472]
[1735833214199,1.319,3459.9,3459.0,2.0495822]
[1735833214387,3.2078,3459.6,3459.2,0.28938]
[1735833214582,3.2078,3459.6,3459.1,0.4754]
[1735833214895,3.2078,3459.6,3459.1,0.76478]
[1735833215100,3.2078,3459.6,3459.1,0.4754]
[1735833215493,3.49716,3459.6,3459.1,0.76479]
[1735833215693,3.2078,3459.6,3459.1,0.4754]
[1735833215895,3.2078,3459.6,3459.2,0.28938]
[1735833216297,3.49716,3459.6,3459.1,0.4754]
[1735833216600,3.49716,3459.6,3459.2,0.28938]
[1735833216891,3.2078,3459.6,3459.2,0.28938]
[1735833217287,3.2078,3459.6,3459.1,0.4754]
[1735833217288,0.28936,3459.5,3459.1,0.76479]
[1735833217895,3.2078,3459.6,3459.1,0.4754]
[1735833218287,0.28936,3459.5,3459.1,0.76479]
[1735833218596,3.2078,3459.6,3459.1,0.4754]
[1735833218894,0.28936,3459.5,3459.1,0.4754]
[1735833219092,3.2078,3459.6,3459.1,0.4754]
[1735833219287,3.2078,3459.6,3459.5,0.28936]
[1735833219690,3.2078,3459.6,3459.3,0.28937]
[1735833219890,3.2078,3459.6,3459.1,0.4754]
[1735833220096,3.49716,3459.6,3459.3,0.28937]
[1735833220488,3.2078,3459.6,3459.1,0.76479]
[1735833220798,0.28937,3459.4,3459.2,0.28938]
[1735833220998,3.2078,3459.6,3459.1,0.4754]
[1735833221491,0.28938,3459.3,3459.1,0.76479]
[1735833221796,0.28938,3459.2,3459.1,0.4754]
[1735833221995,3.2078,3459.6,3459.2,0.28938]
[1735833222296,3.2078,3459.6,3459.1,0.4754]
[1735833222497,3.2078,3459.6,3459.5,0.28936]
[1735833222886,3.2078,3460.2,3459.4,3.2078]
[1735833223092,3.2078,3460.6,3459.8,3.2078]
[1735833223293,3.2078,3460.6,3460.5,0.28927]
[1735833223488,3.2078,3460.6,3460.4,0.28928]
[1735833223489,3.49707,3460.6,3460.4,0.28928]
[1735833223797,3.2078,3461.3,3460.2,3.2078]
[1735833223998,0.28923,3461.1,3460.3,0.72323]
[1735833224196,3.2078,3461.3,3460.2,3.2078]
[1735833224397,0.28923,3461.1,3460.4,0.72321]
[1735833224699,0.28923,3461.1,3460.9,0.28924]
[1735833224901,3.2078,3461.3,3461.1,0.28922]
[1735833225099,3.2078,3461.3,3461.0,0.28923]
[1735833225100,3.49701,3461.3,3461.0,0.28923]
[1735833225795,3.2078,3461.3,3461.2,0.28922]
[1735833225993,2.45846417,3461.8,3461.2,3.2078]
[1735833226188,3.2078,3462.0,3461.7,0.28917]
[1735833226398,3.2078,3462.0,3461.2,3.2078]
[1735833226600,0.28917,3461.8,3461.4,0.28919]
[1735833226898,0.28917,3461.8,3461.5,0.28919]
[1735833227094,0.28916,3461.9,3461.6,0.28918]
[1735833227395,3.49695,3462.0,3461.6,0.28917]
[1735833227599,3.2078,3462.0,3461.8,0.28916]
[1735833228501,2.45846417,3462.2,3461.2,3.2078]
[1735833228902,2.74760417,3462.2,3461.9,0.28915]
[1735833229295,2.45846417,3462.2,3461.2,3.2078]
[1735833229494,2.45846417,3462.6,3461.6,3.2078]
[1735833229695,0.28913,3462.3,3461.9,0.28915]
[1735833229895,0.28914,3462.2,3461.8,0.75256]
[1735833230096,0.28913,3462.3,3462.0,0.28915]
[1735833230497,3.2078,3462.7,3461.8,0.4634]
[1735833230794,3.4969,3462.7,3462.0,3.2078]
[1735833230998,3.49689,3462.7,3462.4,0.28911]
[1735833231192,3.2078,3462.7,3462.5,0.2891]
[1735833231505,3.2078,3462.7,3462.0,3.2078]
[1735833231699,3.2078,3462.7,3462.4,0.28911]
[1735833231700,3.49689,3462.7,3462.4,0.28911]
[1735833232003,3.2078,3462.7,3462.0,3.2078]
[1735833232198,0.28907,3463.0,3462.7,0.28909]
[1735833232398,0.28907,3463.0,3462.7,0.28908]
[1735833232701,3.2078,3463.3,3462.6,0.28909]
[1735833232904,0.28907,3462.9,3462.6,0.28909]
[1735833233299,3.2078,3463.3,3462.0,3.2078]
[1735833233496,0.28908,3462.9,3462.5,0.2891]
[1735833233704,3.2078,3463.3,3462.5,0.2891]
[1735833234005,3.2078,3463.3,3462.4,3.2078]
[1735833234193,3.2078,3463.3,3462.9,0.28907]
[1735833234194,3.49685,3463.3,3462.9,0.28907]
[1735833234393,3.2078,3463.3,3462.5,0.4953]
[1735833234596,3.2078,3463.3,3462.6,0.28909]
[1735833234597,0.28908,3462.9,3462.6,0.28909]
[1735833235100,3.2078,3463.3,3462.5,0.4953]
[1735833235300,0.28907,3463.0,3462.5,0.4953]
[1735833235496,0.28909,3462.7,3462.5,0.4953]
[1735833235697,0.28907,3463.0,3462.7,0.28908]
[1735833235897,0.28905,3463.2,3462.5,0.4953]
[1735833236304,0.28905,3463.2,3462.8,0.28907]
[1735833236503,0.28905,3463.2,3462.9,0.4673]
[1735833236707,3.2078,3463.3,3462.9,0.4673]
[1735833236906,0.28906,3463.1,3462.9,0.4673]
[1735833237304,3.2078,3463.3,3462.9,0.4673]
[1735833237504,0.28906,3463.1,3462.9,0.75637]
[1735833237701,0.28906,3463.1,3462.9,0.4673]
[1735833237903,0.28905,3463.2,3462.9,0.4673]
[1735833238202,3.2078,3463.8,3462.9,0.4673]
[1735833238507,2.05142428,3464.1,3463.3,3.2078]
[1735833238706,0.28901,3463.7,3463.5,0.28902]
[1735833239007,2.05142428,3464.1,3463.4,0.4598]
[1735833239207,2.05142428,3464.4,3463.4,0.4598]
[1735833239409,0.28898,3464.0,3463.8,0.28899]
[1735833239607,0.289,3463.8,3463.4,0.4598]
[1735833239805,2.77381428,3464.4,3463.6,0.28901]
[1735833239806,0.289,3463.9,3463.6,0.28901]
[1735833240201,2.05142428,3464.1,3463.4,0.4598]
[1735833240507,0.28901,3463.7,3463.5,0.28902]
[1735833241009,2.34043428,3463.8,3463.5,0.28902]
[1735833241203,0.28902,3463.6,3463.4,0.74883]
[1735833241516,2.05142428,3464.1,3463.4,0.4598]
[1735833241705,2.05142428,3464.1,3463.6,0.28901]
[1735833241904,0.28901,3463.7,3463.5,0.28902]
[1735833242209,0.28901,3463.7,3463.6,0.28901]
[1735833242408,0.28901,3463.7,3463.5,0.28902]
[1735833242609,3.2078,3464.2,3463.4,0.4598]
[1735833242810,0.28902,3463.5,3463.4,0.4598]
[1735833243001,3.2078,3463.7,3463.0,0.4904]
[1735833243204,3.2078,3463.2,3463.0,0.28906]
[1735833243404,0.28906,3463.1,3463.0,0.28907]
[1735833243610,3.2078,3463.8,3462.9,0.4673]
[1735833243812,3.2078,3464.2,3463.3,3.2078]
[1735833244009,0.28897,3464.1,3464.0,0.28898]
[1735833244216,3.2078,3464.6,3463.9,3.2078]
[1735833244402,3.2078,3464.6,3464.0,0.9561]
[1735833244706,0.28896,3464.3,3464.1,0.28897]
[1735833244909,0.28897,3464.2,3464.1,0.28897]
[1735833245511,0.28896,3464.3,3464.2,0.28896]
[1735833245707,2.45242202,3464.8,3464.5,0.28893]
[1735833245708,0.28892,3464.7,3464.5,0.28893]
[1735833245909,6.38245202,3465.2,3464.0,0.9561]
[1735833246109,0.28894,3464.6,3464.4,0.28894]
[1735833246317,0.28892,3464.7,3464.2,0.28896]
[1735833246619,0.28896,3464.3,3464.1,0.28897]
[1735833246809,0.28897,3464.2,3464.0,1.24508]
[1735833247308,3.2078,3464.8,3464.3,0.28896]
[1735833247615,0.28896,3464.3,3464.1,0.28897]
[1735833247814,3.2078,3464.8,3464.2,0.28896]
[1735833247815,0.28895,3464.4,3464.2,0.28896]
[1735833248211,3.2078,3464.8,3464.0,0.9561]
[1735833248212,0.72232,3464.7,3464.0,0.9561]
[1735833248419,3.2078,3464.8,3464.0,0.9561]
[1735833248619,0.28896,3464.3,3464.1,0.28897]
[1735833248914,3.2078,3464.8,3464.0,0.9561]
[1735833249317,3.2078,3464.8,3464.1,0.28897]
[1735833249318,0.28896,3464.3,3464.1,0.28897]
[1735833249918,0.28897,3464.2,3464.0,0.76108]
[1735833250116,0.28895,3464.4,3464.2,0.28896]
[1735833250311,0.28896,3464.3,3464.2,0.28896]
[1735833250512,0.28897,3464.2,3464.0,0.4721]
[1735833250721,0.28897,3464.2,3464.0,0.76108]
[1735833251421,0.28894,3464.6,3464.4,0.28894]
[1735833251619,0.28891,3464.9,3464.7,0.28892]
[1735833251919,5.66022202,3465.2,3464.6,0.28893]
[1735833252116,0.28889,3465.1,3464.9,0.2889]
[1735833252320,0.72211,3465.7,3465.0,5.66022202]
[1735833252321,3.43297086,3465.7,3465.0,5.66022202]
[1735833252528,5.45655842,3466.6,3465.5,3.2078]
[1735833252721,5.45655842,3466.6,3465.9,0.28882]
[1735833252722,0.28881,3466.1,3465.9,0.28882]
[1735833252918,0.2888,3466.2,3466.0,0.4908]
[1735833253118,0.28881,3466.1,3466.0,0.4908]
[1735833253717,5.45655842,3466.6,3465.5,3.2078]
[1735833253718,0.28884,3465.7,3465.5,3.2078]
[1735833253915,0.72194,3466.5,3465.5,3.6593]
[1735833254225,0.28883,3465.9,3465.5,3.6593]
[1735833254422,0.28885,3465.6,3465.5,3.6593]
[1735833254812,0.28885,3465.6,3465.5,0.4515]
[1735833255212,0.28888,3465.2,3465.1,3.6908]
[1735833255426,0.28888,3465.2,3465.1,0.483]
[1735833256724,3.2078,3465.9,3465.1,8.6908]
[1735833256921,0.28884,3465.7,3465.5,0.28886]
[1735833257135,3.2078,3465.9,3465.4,2.45242202]
[1735833257521,0.28884,3465.7,3465.6,3.2078]
[1735833257728,0.72202,3466.1,3465.2,3.2078]
[1735833257934,0.72202,3466.1,3465.6,3.2078]
[1735833258138,0.28884,3465.7,3465.6,3.2078]
[1735833258824,0.28884,3465.7,3465.1,0.483]
[1735833259128,0.28888,3465.2,3465.1,3.6908]
[1735833259328,0.28888,3465.2,3465.1,3.97969]
[1735833259632,0.28888,3465.2,3465.1,3.6908]
[1735833259825,0.28888,3465.2,3465.1,3.97969]
[1735833260024,0.28888,3465.2,3465.1,3.6908]
[1735833260224,0.28888,3465.2,3465.1,4.1587]
[1735833260631,0.28888,3465.2,3465.1,0.9509]
[1735833260934,0.28888,3465.2,3465.1,4.1587]
[1735833262130,0.72202,3466.1,3465.1,4.1587]
[1735833262334,4.65167,3466.6,3465.9,3.2078]
[1735833262335,0.28882,3466.0,3465.9,3.2078]
[1735833262629,0.72193,3466.6,3465.9,3.2078]
[1735833262830,0.72193,3466.6,3465.9,3.49662]
[1735833263034,0.72193,3466.6,3465.8,0.4844]
[1735833263035,0.28878,3466.4,3466.3,3.2078]
[1735833263739,0.28882,3465.9,3465.8,3.6922]
[1735833264635,0.28882,3465.9,3465.8,0.4844]
[1735833265635,0.2984,3466.7,3465.8,0.4844]
[1735833265933,0.28882,3466.0,3465.9,0.28882]
[1735833266135,0.28881,3466.1,3465.9,0.28882]
[1735833266341,0.28882,3466.0,3465.9,0.28882]
[1735833266838,0.28882,3465.9,3465.8,3.98103]
[1735833267242,0.28882,3465.9,3465.8,3.6922]
[1735833267943,0.28882,3465.9,3465.8,0.4844]
[1735833268339,3.2078,3466.3,3465.3,3.2078]
[1735833268539,0.28887,3465.4,3465.3,3.2078]
[1735833269944,0.28887,3465.3,3465.2,0.4912]
[1735833270840,0.2889,3465.0,3464.9,4.5218]
[1735833271031,0.2889,3465.0,3464.9,4.81071]
[1735833271237,0.2889,3465.0,3464.9,4.5218]
[1735833271543,0.2889,3465.0,3464.9,4.81071]
[1735833272742,0.2889,3465.0,3464.9,4.5218]
[1735833272938,0.2889,3465.0,3464.9,4.81071]
[1735833274142,3.2078,3465.9,3464.9,6.97422202]
[1735833274441,0.28888,3465.2,3465.1,3.49668]
[1735833274846,0.28888,3465.2,3465.1,3.2078]
[1735833275551,0.28888,3465.2,3465.1,3.49669]
[1735833275848,0.28888,3465.3,3465.2,0.28887]
[1735833276048,0.28888,3465.3,3465.2,0.8894]
[1735833276243,0.28888,3465.3,3465.2,1.3462]
[1735833279548,0.28888,3465.3,3465.2,0.8929]
[1735833280847,0.28888,3465.3,3465.2,1.18178]
[1735833281049,0.28885,3465.8,3465.7,0.28884]
[1735833281251,0.28886,3465.5,3465.4,0.4906]
[1735833281448,0.28886,3465.5,3465.4,0.77947]
[1735833281648,0.28886,3465.5,3465.4,0.4906]
[1735833282150,0.28886,3465.5,3465.4,0.77947]
[1735833282454,0.72202,3466.2,3465.4,0.4906]
[1735833282648,0.28884,3465.8,3465.7,0.28883]
[1735833283154,0.72202,3466.2,3465.5,3.2078]
[1735833283357,0.28885,3465.7,3465.6,0.28884]
[1735833283547,0.28884,3465.8,3465.7,0.28883]
[1735833283754,0.28885,3465.7,3465.6,0.28884]
[1735833284449,0.28884,3465.8,3465.7,0.28883]
[1735833288757,0.28884,3465.8,3465.5,3.2078]
[1735833288758,0.72206,3466.0,3465.5,3.2078]
[1735833289055,0.28885,3465.6,3465.5,3.49665]
[1735833289359,0.28885,3465.6,3465.5,3.2078]
[1735833291260,2.2362436,3466.4,3466.3,0.28879]
[1735833292868,0.28878,3466.4,3466.3,0.28879]
[1735833293670,0.28878,3466.5,3466.4,0.28877]
[1735833294174,5.25621558,3466.8,3466.1,0.8766]
[1735833294358,2.04841558,3466.5,3466.1,0.4436]
[1735833294559,0.28881,3466.1,3466.0,4.4894522]
[1735833294876,0.28881,3466.1,3466.0,4.7782722]
[1735833295056,0.28881,3466.1,3466.0,4.4894522]
[1735833295262,0.28881,3466.1,3466.0,4.7782722]
[1735833295565,0.28881,3466.1,3465.5,11.60551801]
[1735833295566,0.28883,3465.9,3465.8,0.28882]
[1735833296967,0.28881,3466.2,3466.1,0.2888]
[1735833297270,0.28882,3466.1,3466.0,0.28881]
[1735833297464,0.28882,3466.0,3465.9,0.28881]
[1735833299158,2.2362436,3466.2,3465.8,4.4894522]
[1735833299567,0.28882,3466.0,3465.9,0.28882]
[1735833300071,2.2362436,3466.2,3465.8,4.4894522]
[1735833300072,0.28881,3466.1,3466.0,0.28881]
[1735833300271,2.2362436,3466.2,3465.8,4.4894522]
[1735833300569,3.3543654,3466.4,3465.9,0.28881]